{"text_format":"2","workbook":"xlsx","n_sheets":1,"sheets":["devis"],"not_rendered":{"charts":0,"images":0,"macros":0,"external_links":0,"defined_names":1,"comments":0,"pivot_tables":0},"unopened":[],"bounds":{"document_bytes":16777216,"sheet_cells":100000,"run_cost":"one","rows_first":2000,"rows_last":500,"rows_between":2000,"halvings":0,"cell_chars":16384,"cell_head_chars":4096},"cells_cut":0,"cells_raw":0,"read":"whole","date_system":"1900"}

{"sheet":"devis","index":0,"n_rows":55,"n_cols":6,"rows_kept":55,"cut":false,"hidden":false,"merged":[[2,0,2,5],[4,0,4,5],[54,0,58,5]]}
[]
[]
["BORDEREAU DE DEATILS DU DEVIS QUANTITATIF ET ESTIMATIF    LOT N° 01 :      "]
[]
["TRAVAUX PREPARATOIRE-GROS ŒUVRE-TOITURE CHARPENTE- MENUISERIE BOIS- ASSAINISSEMENT EP"]
[]
[]
["Code","Désignation","U","Q","Déboursé","Total"]
[]
[]
["1.1","Travaux Préparatoire"]
["1.1.1","Mobilisation et démobilisation du matériel, barrière et cabane de chantier","Ens",1,null,{"$f":"D12*E12","v":0}]
["1.1.2","Implantation, supplementaire du batiment et démolition des maçonneries et évacuation de gravats , yc toutes suggestions de mise en œuvre","Ens",1,null,{"$f":"D13*E13","v":0}]
[null,"Sous total 01",null,null,null,{"$f":"SUM(F12:F13)","v":0}]
[]
["1.2","Gros œuvre"]
["1.2.1","Démolition partielle, extension( Fondation- soubassement- élevations) avec enduit 2 faces  et travaux de ravalement aux endroits fissurés maconneries  yc toutes suggestions de mise en œuvre localisation : Bureau 01-02 et Séjour VIP, SE 02, Chambres","Ens",1,null,{"$f":"E17*D17","v":0}]
["1.2.2","Démolition partielle et extension Corridor ( fondation -soubassement- Elévation)  avec enduit 2 faces yc toutes suggestions de mise en œuvre localisation : Patio","m²",5.52,null,{"$f":"E18*D18","v":0}]
["1.2.3","Fourniture et pose des claustras  ajourés et poteaux avec enduit 2 faces yc toutes suggestions de mise en œuvre localisation : Patio","m²",14,null,{"$f":"D19*E19","v":0}]
["1.2.4","Fourniture et pose en agglos plein de 15 avec enduit 2 faces yc toutes suggestions de mise en œuvre localisation : Portail Garage véhicule","m²",3.6,null,{"$f":"D20*E20","v":0}]
["1.2.5","Fourniture et pose   en agglos 10cm d'épaisseur avec enduit 2 faces yc toutes suggestions de mise en œuvre localisation : Dressing Chambre Parent,chambre 02","m²",8.84,null,{"$f":"E21*D21","v":0}]
["1.2.7","Démolition partielle de la barrière à mi-hauteur , Fourniture et pose des claustrats aveugles ajourés avec enduit 2 faces et poteaux yc toutes suggestions de mise en œuvre localisation  facade côté mer","m²",30,null,{"$f":"E22*D22","v":0}]
["1.2.9","Travaux de ravalement des poteaux et maconnerie: piquetage, pose grillage, rebouchage, ponçage avec enduit 2 faces et amenagement du site yc toutes suggestion de mise en œuvre, localisation: l'ensemble de la cloture de sécurité et espace de detente cote mèr","Ens",1,null,{"$f":"D23*E23","v":0}]
["1.2.10","Rafraichissement, Fourniture et pose  des dallettes pas jardin yc toutes suggestions de mise en œuvre","Ens",1,null,{"$f":"E24*D24","v":0}]
["1.2.11","Fourniture et pose bastaing 120x 60 en bois essence 1°choix  , traitement inclus fixation yc toutes suggestion de mise en œuvre localisation espace de detente cote mèr","Ens",1,null,{"$f":"E25*D25","v":0}]
[null,"Sous total 02",null,null,null,{"$f":"SUM(F17:F25)","v":0}]
[]
[]
["1.4"," Toiture charpente"]
["1.4.2","Charpente traditionnelle en bois traité, planche de rive , tôle lisse 7/10 avec fixation y/c toutes suggestions de mise en œuvre Localisation: villa zone exterieure debord de toiture","Ens",1,null,{"$f":"E30*D30","v":0}]
["1.4.3","Fourniture et pose toiture bac Alu 7/10 yc toutes suggestions de mise en œuvre Localisation:  Bureau 01-02, Patio","m²",80,null,{"$f":"D31*E31","v":0}]
["1.4.4","Fournitureet pose plafond en placo BA13 yc support de fixation et toutes suggestions de mise en œuvre Localisation :Villa zone exterieure debord de toiture facade entrée principale et garage","m²",40,null,{"$f":"D32*E32","v":0}]
["1.4.5","Rafraichissement, fourniture et pose des joint d'étancheité sur les points de fuites aux niveau de l'ensemble de la toiture,","Ens",1,null,{"$f":"E33*D33","v":0}]
[null,"Sous total 04",null,null,null,{"$f":"F30+F31+F33","v":0}]
[]
["1.5","Menuiserie Bois "]
["1.5.1","Fourniture , pose de plafond en Contre Plaqué 8mm yc supports et fixations et toutes suggestions de mise en œuvre Localisation:  Bureau 01-02, Patio, villa et annexes","m²",120,null,{"$f":"E37*D37","v":0}]
["1.5.2","Fourniture et pose de plafond en Placo BA13  yc supports et fixations et toutes suggestions de mise en œuvre Localisation: Cuisine","m²",9.34,null,{"$f":"D38*E38","v":0}]
["1.5.3","Fourniture et pose portes en bois ame pleine deux battants 150X210cm revetement vernis yc Pré-cadre; couvre-joint ,serrure à canon, buté, 3 paumelles et toutes suggestions de mise en œuvre Localisation:Hall d'entrée","U",1,null,{"$f":"E39*D39","v":0}]
["1.5.4","Fourniture et pose portes en bois ame pleine  83X210cm revetement vernis  yc Pré-cadre; couvre-joint ,serrure à canon, buté,3 paumelles et toutes suggestions de mise en œuvre Localisation: Bureau 01-02 sejour VIP","U",2,null,{"$f":"E40*D40","v":0}]
["1.5.5","Fourniture et pose portes isoplanes en bois   83X210cm revetement uniformes aux portes existantes yc Pré-cadre; couvre-joint ,serrure à canon , buté, 3 paumelles et toutes suggestions de mise en œuvre Localisation:SE02-SE01, Séjour VIP","U",3,null,{"$f":"E41*D41","v":0}]
["1.5.5","Fourniture et pose placards en bois  existantes yc étagères, Pré-cadre; couvre-joint ,serrure à canon, 3 paumelles invisibles et toutes suggestions de mise en œuvre Localisation :Chambre parents, chambre 02","Ens",1,null,{"$f":"E42*D42","v":0}]
["1.5.6","Rafrachissement de l'ensemble des portes et  meubles bois existants yc Pré-cadre; couvre-joint serrure à canon , buté, 3 paumelles et toutes suggestions de mise en œuvre Localisation:Villa et annexes","Ens",1,null,{"$f":"E43*D43","v":0}]
[]
[null,"Sous total 05",null,null,null,{"$f":"SUM(F37:F44)","v":0}]
[]
["1.6","Assainnissement EP, EU,EV"]
["1.6.1","Néttoyage et currages de l'ensemble des caniveaux , fosse septique , puisards et espaces verts du site yc toutes suggestion de mise en œuvre ","Ens",1,null,{"$f":"E48*D48","v":0}]
["1.6.2","Vérification des circuits , fourniture et pose avec connection des régards au fosse septique et caniveaux pour les EP yc toutes suggestion de mise en œuvre ","Ens",1,null,{"$f":"E49*D49","v":0}]
[null,"Sous total 06",null,null,null,{"$f":"SUM(F48:F49)","v":0}]
[]
[null,"TOTAL LOT 01",null,null,null,{"$f":"F50+F45+F34+F26+F14","v":0}]
[]
[]
["\"NB : L'Entrepreneur exécutera, comme étant inclus dans son prix, tous travaux ressortissant de son lot et nécessaires au parfait achèvement des travaux. Il devra signaler clairement à part, dans la présentation de son offre, toutes les prestations des travaux qui ne figureraient pas dans le présent DQ. Aussi le montant du présent LOT sera forfaitaire et non révisable après négociation."]